bitfinex/quotes_BTCUSD_20250313
["timestamp","ask_amount","ask_price","bid_price","bid_amount"]
[1741880195535,0.258293,81303.0,81297.0,0.258309]
[1741880195536,0.012299,81303.0,81297.0,0.258309]
[1741880195734,0.258292,81303.0,81297.0,0.258309]
[1741880196049,0.258292,81303.0,81281.0,0.001]
[1741880196050,0.246016,81296.0,81290.0,0.24603]
[1741880196297,0.246016,81296.0,81284.0,0.012302]
[1741880196298,0.012301,81291.0,81284.0,0.012302]
[1741880196438,0.246038,81288.0,81281.0,0.001]
[1741880196639,0.25835,81285.0,81281.0,0.001]
[1741880196837,0.24605,81284.0,81281.0,0.001]
[1741880197262,0.246045,81286.0,81281.0,0.25936]
[1741880197458,0.246051,81284.0,81281.0,0.001]
[1741880197659,0.012301,81288.0,81281.0,0.001]
[1741880197660,0.3,81297.0,81288.0,0.012301]
[1741880197881,0.0123,81299.0,81281.0,0.247053]
[1741880197882,0.246005,81299.0,81293.0,0.012301]
[1741880198058,0.0123,81300.0,81294.0,0.258321]
[1741880198238,0.3,81307.0,81300.0,0.0123]
[1741880198444,0.3,81319.0,81311.0,0.012298]
[1741880198664,0.012297,81319.0,81311.0,0.012298]
[1741880198862,0.01926728,81318.0,81317.0,0.012297]
[1741880199066,0.01926728,81318.0,81317.0,0.258248]
[1741880199680,0.03156428,81318.0,81307.0,0.245978]
[1741880199892,0.012297,81317.0,81309.0,0.012298]
[1741880200096,0.01926728,81318.0,81312.0,0.012298]
[1741880200322,0.0126364,81316.0,81308.0,0.012298]
[1741880200587,0.0126364,81316.0,81315.0,0.012297]
[1741880200588,0.0003394,81316.0,81315.0,0.012297]
[1741880200792,0.0003394,81316.0,81312.0,0.258261]
[1741880201090,0.0003394,81316.0,81315.0,0.012297]
[1741880201304,0.0003394,81316.0,81315.0,0.258254]
[1741880201470,0.0003394,81316.0,81306.0,0.012299]
[1741880201471,0.245963,81314.0,81306.0,0.012299]
[1741880201676,0.245957,81315.0,81307.0,0.258277]
[1741880201875,0.0003394,81316.0,81308.0,0.012298]
[1741880202053,0.245965,81313.0,81305.0,0.258286]
[1741880202262,0.245968,81312.0,81306.0,0.245981]
[1741880202459,0.012298,81313.0,81308.0,0.012298]
[1741880202807,0.258254,81315.0,81308.0,0.012298]
[1741880202964,0.0003394,81316.0,81307.0,0.001]
[1741880202965,0.012298,81313.0,81307.0,0.001]
[1741880203167,0.0003394,81316.0,81312.0,0.258264]
[1741880203363,0.0003394,81316.0,81307.0,0.001]
[1741880203364,0.012298,81308.0,81307.0,0.001]
[1741880204040,0.245957,81315.0,81308.0,0.012298]
[1741880204242,0.558247,81318.0,81308.0,0.012298]
[1741880204414,0.012297,81315.0,81308.0,0.012298]
[1741880204658,0.012296,81327.0,81315.0,0.245957]
[1741880204959,0.02456834,81320.0,81313.0,0.258258]
[1741880205143,0.312295,81330.0,81315.0,0.012297]
[1741880205548,0.17772,81336.0,81315.0,0.012297]
[1741880205847,0.245926,81326.0,81315.0,0.012297]
[1741880206048,0.25824,81320.0,81313.0,0.258258]
[1741880206280,0.012298,81312.0,81306.0,0.0488]
[1741880206566,0.01236853,81326.0,81306.0,0.0488]
[1741880206567,0.012296,81321.0,81311.0,0.258265]
[1741880206779,0.01236853,81326.0,81315.0,0.258254]
[1741880207303,0.01236853,81326.0,81315.0,0.37795499]
[1741880207992,0.012294,81334.0,81315.0,0.37795499]
[1741880208217,0.012294,81337.0,81315.0,0.37795499]
[1741880208218,0.3,81342.0,81315.0,0.37795499]
[1741880208348,0.01926312,81327.0,81315.0,0.43934153]
[1741880208872,4e-07,81316.0,81315.0,0.43934153]
[1741880209560,4e-07,81316.0,81315.0,0.44434153]
[1741880209970,4e-07,81316.0,81315.0,1.94434153]
[1741880210175,0.01926097,81344.0,81343.0,0.258165]
[1741880210371,0.01926097,81344.0,81343.0,0.37786599]
[1741880211070,0.245842,81353.0,81347.0,0.258151]
[1741880211321,0.01925764,81356.0,81355.0,0.012291]
[1741880211527,0.01925764,81356.0,81355.0,0.258127]
[1741880211737,0.01925764,81356.0,81355.0,0.37782799]
[1741880211949,0.01229,81366.0,81360.0,0.245819]
[1741880212144,0.01229,81366.0,81351.0,0.012292]
[1741880212145,0.245829,81358.0,81351.0,0.012292]
[1741880212351,0.25813,81354.0,81349.0,0.245854]
[1741880212562,0.245813,81363.0,81355.0,0.245833]
[1741880212756,0.245809,81364.0,81357.0,0.012291]
[1741880213004,0.01925513,81366.0,81363.0,0.258099]
[1741880213203,0.03154513,81366.0,81360.0,0.012291]
[1741880213410,0.01229,81362.0,81357.0,0.012291]
[1741880213584,0.01229,81363.0,81357.0,0.258118]
[1741880213933,0.01229,81362.0,81353.0,0.012292]
[1741880214098,0.00140245,81357.0,81353.0,0.258132]
[1741880214297,0.00140245,81357.0,81342.0,0.17688]
[1741880214298,0.245862,81347.0,81342.0,0.17688]
[1741880214499,0.245851,81350.0,81344.0,0.012293]
[1741880214698,0.012293,81346.0,81342.0,0.17688]
[1741880215073,0.012294,81339.0,81330.0,0.258204]
[1741880215275,0.258174,81341.0,81335.0,0.258187]
[1741880215445,0.012293,81343.0,81337.0,0.258183]
[1741880215655,0.012292,81349.0,81344.0,0.001]
[1741880215862,0.012293,81345.0,81344.0,0.001]
[1741880216224,0.258159,81345.0,81344.0,0.001]
[1741880216855,0.012293,81341.0,81335.0,0.245894]
[1741880217055,0.245877,81342.0,81336.0,0.258184]
[1741880217979,0.245877,81342.0,81337.0,0.012294]
[1741880218218,0.245883,81340.0,81335.0,0.012294]
[1741880218366,0.258168,81342.0,81336.0,0.012294]
[1741880218573,0.258168,81342.0,81336.0,0.007294]
[1741880218751,0.258173,81341.0,81336.0,0.007294]
[1741880218984,0.012293,81341.0,81337.0,0.24589]
[1741880219169,0.258168,81342.0,81337.0,0.258184]
[1741880219386,0.012383,81346.0,81341.0,0.245878]
[1741880219582,0.012293,81345.0,81340.0,0.012294]
[1741880219785,0.245882,81340.0,81336.0,0.253186]
[1741880219986,0.258168,81342.0,81336.0,0.245893]
[1741880220252,0.245886,81339.0,81336.0,0.001]
[1741880220552,0.25816,81345.0,81335.0,0.25819]
[1741880220777,0.245882,81340.0,81336.0,0.012294]
[1741880220979,0.245886,81339.0,81334.0,1.512294]
[1741880221181,0.258173,81341.0,81335.0,0.25819]
[1741880221348,0.258177,81340.0,81336.0,0.002]
[1741880221538,0.01219242,81346.0,81344.0,0.258159]
[1741880221737,0.01229,81362.0,81350.0,0.245848]
[1741880221899,0.01215307,81351.0,81344.0,0.245866]
[1741880222109,0.012294,81337.0,81336.0,0.001]
[1741880222324,0.012293,81346.0,81337.0,0.245887]
[1741880222535,0.012292,81350.0,81343.0,0.258162]
[1741880222762,0.01242367,81351.0,81347.0,0.012293]
[1741880222963,0.245844,81353.0,81347.0,0.012293]
[1741880223168,0.0126304,81355.0,81347.0,0.012293]
[1741880223169,0.0003394,81355.0,81351.0,0.012292]
[1741880223365,0.0003394,81355.0,81350.0,0.258143]
[1741880223366,0.01247895,81355.0,81350.0,0.258143]
[1741880223570,0.01247895,81355.0,81354.0,0.25613]
[1741880223830,0.01247895,81355.0,81350.0,0.258143]
[1741880224045,0.012292,81351.0,81341.0,1.5]
[1741880224255,0.012295,81331.0,81327.0,0.01245811]
[1741880224465,0.012293,81345.0,81335.0,0.012294]
[1741880224678,0.012293,81345.0,81337.0,0.012294]
[1741880224679,0.012293,81343.0,81337.0,0.012294]
[1741880224876,0.012293,81343.0,81336.0,0.245893]
[1741880224877,0.3,81352.0,81343.0,0.258162]
[1741880225051,0.258125,81356.0,81354.0,0.001]
[1741880225252,0.27060595,81355.0,81354.0,0.001]
[1741880226214,0.57060595,81355.0,81354.0,0.001]
[1741880226899,0.245906,81332.0,81326.0,0.245923]
[1741880227109,0.245939,81321.0,81315.0,0.012297]
[1741880227312,0.012298,81312.0,81306.0,0.25828]
[1741880227511,0.245972,81310.0,81306.0,0.11970099]
[1741880227688,0.012298,81308.0,81302.0,0.012299]
[1741880227895,0.258268,81311.0,81304.0,0.24599]
[1741880228089,0.258268,81311.0,81306.0,0.012299]
[1741880228292,0.258272,81310.0,81303.0,0.0124687]
[1741880228474,0.245987,81305.0,81303.0,0.0001697]
[1741880228692,0.258276,81308.0,81303.0,0.0001697]
[1741880228892,0.258289,81304.0,81303.0,0.0001697]
[1741880230534,0.012298,81309.0,81303.0,0.0001697]
[1741880230535,0.012298,81310.0,81306.0,0.003]
[1741880230763,0.10013551,81328.0,81309.0,0.012298]
[1741880230931,0.012297,81318.0,81313.0,0.245963]
[1741880231137,0.012298,81313.0,81305.0,0.245984]
[1741880231333,0.012298,81310.0,81306.0,1.5]
[1741880231533,0.24599,81304.0,81303.0,0.0031697]
[1741880231738,0.258289,81304.0,81303.0,0.0001697]
[1741880232085,0.258285,81306.0,81303.0,0.0001697]
[1741880232287,0.01220518,81316.0,81314.0,0.24596]
[1741880232491,0.01220518,81316.0,81313.0,0.012298]
[1741880232696,0.012298,81313.0,81306.0,0.002]
[1741880232820,0.245969,81312.0,81306.0,0.247982]
[1741880233224,0.3,81323.0,81306.0,0.247982]
[1741880233225,0.01235409,81316.0,81313.0,0.012298]
[1741880233432,0.3,81323.0,81317.0,0.012297]
[1741880233723,0.245938,81322.0,81317.0,0.012297]
[1741880233898,0.012298,81310.0,81286.0,0.06834085]
[1741880234142,0.01135984,81316.0,81314.0,0.258255]
[1741880234356,0.01135984,81316.0,81315.0,0.012297]
[1741880234595,0.01135984,81316.0,81315.0,0.13199799]
[1741880234788,0.01135984,81316.0,81315.0,0.13322755]
[1741880234999,0.01135984,81316.0,81315.0,0.13322746]
[1741880235435,0.01135984,81316.0,81315.0,0.13199799]
[1741880235762,8.4e-07,81316.0,81315.0,0.13822744]
[1741880235970,8.4e-07,81316.0,81315.0,0.15276829]
[1741880236190,0.258144,81350.0,81344.0,0.258159]
[1741880236396,0.10802372,81354.0,81351.0,0.258137]
[1741880236641,0.10802372,81354.0,81348.0,0.012292]
[1741880236642,0.42031472,81354.0,81347.0,0.24586]
[1741880236970,0.245848,81351.0,81346.0,0.258155]
[1741880237189,0.012293,81345.0,81340.0,0.258172]
[1741880237393,0.012293,81345.0,81341.0,0.11970099]
[1741880237542,0.012293,81341.0,81330.0,0.258204]
[1741880237749,0.245881,81340.0,81335.0,0.245896]
[1741880237952,0.245871,81344.0,81336.0,0.258185]
[1741880238155,0.01925837,81345.0,81344.0,0.012293]
[1741880238356,0.012292,81350.0,81344.0,0.012293]
[1741880238572,0.012294,81340.0,81334.0,0.012294]
[1741880238781,0.012293,81341.0,81330.0,0.245909]
[1741880238937,0.258182,81338.0,81333.0,0.012295]
[1741880239138,0.012293,81341.0,81335.0,0.25819]
[1741880239369,0.012294,81339.0,81333.0,0.012295]
[1741880239578,0.245884,81339.0,81332.0,0.012295]
[1741880239783,0.258171,81342.0,81335.0,0.012294]
[1741880239955,0.012293,81344.0,81337.0,0.245887]
[1741880240140,0.01925881,81338.0,81334.0,0.012294]
[1741880240339,0.27744281,81338.0,81332.0,0.245903]
[1741880240600,0.27744281,81338.0,81335.0,0.002]
[1741880240796,0.245893,81337.0,81332.0,0.258198]
[1741880241000,0.03155281,81338.0,81329.0,0.012295]
[1741880241158,0.01925881,81338.0,81337.0,0.259184]
[1741880241363,0.01925881,81338.0,81335.0,0.246063]
[1741880241364,0.012294,81336.0,81335.0,0.000169]
[1741880241611,0.01925881,81338.0,81337.0,0.012294]
[1741880241816,0.01925881,81338.0,81335.0,0.003169]
[1741880242188,0.27709365,81338.0,81335.0,0.000169]
[1741880242389,0.258186,81337.0,81335.0,0.000169]
[1741880242607,0.012294,81336.0,81335.0,0.000169]
[1741880242817,0.01891265,81338.0,81335.0,0.000169]
[1741880243036,0.01891265,81338.0,81337.0,0.258184]
[1741880243200,0.245868,81345.0,81341.0,0.245877]
[1741880243402,0.245887,81338.0,81335.0,0.000169]
[1741880243577,0.258172,81341.0,81337.0,0.245888]
[1741880243778,0.012293,81346.0,81340.0,0.245881]
[1741880244071,0.01220017,81350.0,81346.0,0.012293]
[1741880244236,0.27034517,81350.0,81345.0,0.245864]
[1741880244443,0.000338,81351.0,81349.0,0.245852]
[1741880244865,0.000338,81351.0,81350.0,0.012292]
[1741880245064,0.000338,81351.0,81348.0,0.258146]
[1741880245286,0.000338,81351.0,81350.0,0.245851]
[1741880245487,0.000338,81351.0,81350.0,0.37784399]
[1741880247550,4e-07,81355.0,81354.0,0.35517085]
[1741880247682,4e-07,81355.0,81354.0,0.47487184]
[1741880247891,0.01925401,81374.0,81373.0,0.012289]
[1741880248096,0.245714,81396.0,81390.0,0.012286]
[1741880248313,0.012285,81396.0,81390.0,0.24573]
[1741880248514,0.2583334,81398.0,81390.0,0.258016]
[1741880248725,0.12727149,81391.0,81389.0,0.011286]
[1741880248883,0.12727149,81391.0,81390.0,0.012286]
[1741880249121,0.01924777,81391.0,81390.0,0.012286]
[1741880249521,0.01924777,81391.0,81388.0,0.258022]
[1741880249863,0.24573,81390.0,81382.0,0.258038]
[1741880250070,0.01924777,81391.0,81390.0,0.012286]
[1741880250226,0.245764,81379.0,81363.0,0.0469]
[1741880250434,0.012288,81377.0,81371.0,0.012289]
[1741880250646,0.012288,81374.0,81367.0,0.258086]
[1741880250842,0.01925012,81376.0,81373.0,0.245779]
[1741880251085,0.01925012,81376.0,81375.0,0.245775]
[1741880251304,0.01925012,81376.0,81375.0,0.37776399]
[1741880251506,0.258009,81393.0,81383.0,0.258037]
[1741880251722,0.245717,81395.0,81386.0,0.258027]
[1741880251923,0.257998,81396.0,81388.0,0.012286]
[1741880252083,0.01245859,81398.0,81388.0,0.012286]
[1741880252084,0.01245859,81398.0,81389.0,0.012286]
[1741880252289,0.0126244,81398.0,81390.0,0.012286]
[1741880252492,0.012286,81393.0,81384.0,0.245746]
[1741880252672,0.258016,81390.0,81385.0,0.25803]
[1741880252879,0.012286,81387.0,81380.0,0.012288]
[1741880253084,0.012286,81390.0,81372.0,0.012289]
[1741880253085,0.012287,81384.0,81372.0,0.012289]
[1741880253453,0.368549,81401.0,81371.0,0.002]
[1741880253454,0.012289,81372.0,81371.0,0.002]
[1741880253625,0.258073,81372.0,81371.0,0.002]
[1741880253964,0.012287,81386.0,81354.0,0.01226697]
[1741880254164,0.3,81389.0,81381.0,0.012287]
[1741880254165,0.245736,81388.0,81381.0,0.012287]
[1741880254423,0.012287,81385.0,81380.0,0.014288]
[1741880254583,0.25802,81389.0,81382.0,0.012287]
[1741880254923,0.000338,81390.0,81384.0,0.258035]
[1741880255099,0.000338,81390.0,81389.0,0.245733]
[1741880255306,0.000338,81390.0,81386.0,0.258027]
[1741880255487,0.012286,81388.0,81383.0,0.012287]
[1741880255686,0.000338,81390.0,81383.0,0.012287]
[1741880255887,0.000338,81390.0,81385.0,0.245745]
[1741880256097,0.000338,81390.0,81386.0,0.245742]
[1741880256296,0.25819745,81389.0,81384.0,0.245748]
[1741880256496,0.012286,81388.0,81384.0,0.245748]
[1741880256731,0.0001925,81388.0,81387.0,0.258025]
[1741880257295,0.000338,81390.0,81389.0,0.258019]
[1741880257471,0.012287,81386.0,81379.0,0.012288]
[1741880257670,0.258037,81384.0,81380.0,0.11970099]
[1741880258038,0.00020602,81383.0,81377.0,0.245767]
[1741880258334,0.012289,81370.0,81361.0,0.0493]
[1741880258535,0.245772,81377.0,81365.0,0.01229]
[1741880258801,0.005483,81369.0,81368.0,0.012289]
[1741880258969,0.545753,81383.0,81377.0,0.012288]
[1741880259149,0.01924927,81384.0,81380.0,0.245759]
[1741880259352,0.245757,81381.0,81375.0,0.258062]
[1741880259579,0.012286,81387.0,81368.0,0.11970099]
[1741880259580,0.012286,81388.0,81381.0,0.012287]
[1741880259787,0.01925002,81384.0,81382.0,0.258041]
[1741880260086,0.27728802,81384.0,81380.0,0.245759]
[1741880260445,0.012289,81371.0,81361.0,0.01229]
[1741880260658,0.01925002,81384.0,81353.0,0.012292]
[1741880260659,0.245827,81358.0,81353.0,0.012292]
[1741880260866,0.245827,81358.0,81352.0,0.012292]
[1741880260867,0.258155,81347.0,81339.0,0.012294]
[1741880261074,0.30150855,81350.0,81337.0,0.012294]
[1741880261284,0.312291,81356.0,81346.0,0.012293]
[1741880261486,0.012294,81340.0,81331.0,0.012295]
[1741880261701,0.012294,81336.0,81321.0,0.431754]
[1741880261873,0.012294,81336.0,81322.0,0.258229]
[1741880262073,0.012294,81336.0,81316.0,1.500169]
[1741880263138,0.01926109,81336.0,81330.0,0.012295]
[1741880263323,0.245893,81336.0,81325.0,0.00122943]
[1741880263518,0.245893,81336.0,81335.0,0.002169]
[1741880263827,0.258187,81336.0,81335.0,0.002169]
[1741880264577,0.245893,81336.0,81335.0,0.002169]
[1741880265364,0.258187,81336.0,81335.0,0.002169]
[1741880265567,0.245877,81342.0,81335.0,0.002169]
[1741880265766,0.245866,81346.0,81337.0,0.012294]
[1741880265994,0.245877,81342.0,81338.0,0.11970099]
[1741880266169,0.245881,81340.0,81338.0,0.11970099]
[1741880266367,0.245877,81342.0,81338.0,0.11970099]
[1741880266730,0.245884,81340.0,81338.0,0.11970099]
[1741880266941,0.245879,81341.0,81338.0,0.11970099]
[1741880267124,0.001,81342.0,81340.0,0.012294]
[1741880267253,0.245854,81349.0,81341.0,0.37787199]
[1741880267458,0.0774,81376.0,81341.0,0.37787199]
[1741880267459,0.01226438,81365.0,81353.0,0.012292]
[1741880267771,0.245834,81356.0,81354.0,0.11970099]
[1741880268199,0.258125,81356.0,81354.0,0.11970099]
[1741880268423,0.24586,81347.0,81338.0,0.003]
[1741880268606,0.24587,81344.0,81339.0,0.11970099]
[1741880268802,0.245875,81343.0,81339.0,0.11970099]
[1741880269103,0.245866,81346.0,81342.0,0.245874]
[1741880269300,0.245857,81348.0,81343.0,0.37786399]
[1741880269501,0.245866,81345.0,81343.0,0.11970099]
[1741880269870,0.245866,81345.0,81344.0,1.5]
[1741880270075,0.245851,81350.0,81344.0,1.61970099]
[1741880270271,0.24586,81348.0,81345.0,0.11970099]
[1741880270474,0.24586,81348.0,81344.0,1.5]
[1741880270475,0.012293,81345.0,81329.0,0.17432]
[1741880270705,0.245878,81341.0,81336.0,0.11970099]
[1741880270905,0.24589,81338.0,81336.0,0.11970099]
[1741880271107,0.245881,81340.0,81337.0,1.5]
[1741880271318,0.245843,81353.0,81341.0,0.012293]
[1741880271524,0.24586,81348.0,81342.0,0.12093019]
[1741880271746,0.245865,81346.0,81342.0,0.11970099]
[1741880271900,0.245865,81346.0,81343.0,1.5]
[1741880272109,0.01925739,81347.0,81344.0,0.11970099]
[1741880272310,0.01925739,81347.0,81344.0,0.36556699]
[1741880272511,0.01925739,81347.0,81345.0,0.012293]
[1741880272713,0.245828,81358.0,81351.0,0.258137]
[1741880272936,0.245826,81359.0,81353.0,0.24584]
[1741880273247,0.24583,81357.0,81354.0,0.11970099]
[1741880273463,0.245826,81359.0,81354.0,0.11970099]
[1741880273952,0.245829,81358.0,81354.0,0.11970099]
[1741880274168,0.012287,81381.0,81367.0,0.012289]
[1741880274367,0.012287,81381.0,81354.0,0.12093003]
[1741880274368,0.258084,81369.0,81359.0,0.258112]
[1741880274563,0.245795,81369.0,81360.0,0.11970099]
[1741880274766,0.01229,81366.0,81360.0,0.11970099]
[1741880274984,0.012289,81370.0,81362.0,0.01229]
[1741880275272,0.02486447,81374.0,81363.0,0.11970099]
[1741880275418,0.25808,81370.0,81363.0,0.11970099]
[1741880275614,0.02486447,81374.0,81353.0,0.258133]
[1741880275615,0.245826,81359.0,81353.0,0.258133]
[1741880275838,0.012291,81360.0,81352.0,0.012292]
[1741880276041,0.3,81369.0,81362.0,0.258104]
[1741880276245,0.3,81369.0,81365.0,0.258092]
[1741880276443,0.3,81369.0,81366.0,0.25809]
[1741880276642,0.01257647,81374.0,81368.0,0.012289]
[1741880276860,0.012287,81381.0,81375.0,0.245775]
[1741880277040,0.245752,81383.0,81376.0,0.24577]
[1741880277239,0.312287,81384.0,81377.0,0.012288]
[1741880277473,0.000338,81390.0,81383.0,0.012287]
[1741880277667,0.258022,81389.0,81384.0,0.012287]
[1741880277891,0.012287,81382.0,81376.0,0.012288]
[1741880278098,0.245753,81383.0,81378.0,0.258051]
[1741880278272,0.245759,81381.0,81377.0,0.11970099]
[1741880278499,0.012289,81370.0,81365.0,0.258092]
[1741880278763,0.012289,81368.0,81361.0,0.01229]
[1741880278937,0.258088,81368.0,81359.0,0.245823]
[1741880279146,0.258088,81368.0,81360.0,0.11970099]
[1741880279323,0.01229,81363.0,81360.0,0.11970099]
[1741880279546,0.258106,81362.0,81360.0,0.11970099]
[1741880279735,0.01229,81363.0,81360.0,0.11970099]
[1741880280063,0.245811,81364.0,81361.0,0.002]
[1741880280271,0.258104,81362.0,81361.0,0.002]
[1741880280494,0.245774,81376.0,81366.0,0.01229]
[1741880280690,0.012289,81368.0,81361.0,0.11970099]
[1741880280889,0.01229,81363.0,81362.0,0.11970099]
[1741880281208,0.01229,81361.0,81360.0,0.003]
[1741880281368,0.258088,81368.0,81360.0,0.015291]
[1741880281575,0.258127,81355.0,81354.0,0.0001689]
[1741880281787,0.67782799,81355.0,81354.0,0.0001689]
[1741880281951,0.67782799,81355.0,81354.0,9e-07]
[1741880283270,0.69708819,81355.0,81354.0,9e-07]
[1741880283637,0.7525872,81355.0,81354.0,9e-07]
[1741880283768,0.5773872,81355.0,81354.0,9e-07]
[1741880285252,0.5803872,81355.0,81354.0,9e-07]
[1741880285524,0.5773872,81355.0,81354.0,9e-07]
[1741880285747,0.5783872,81355.0,81354.0,9e-07]
[1741880286128,0.69808819,81355.0,81354.0,9e-07]
[1741880286388,0.78526843,81355.0,81354.0,9e-07]
[1741880286594,0.89620823,81355.0,81354.0,9e-07]
[1741880287051,0.92960745,81355.0,81354.0,9e-07]
[1741880287271,0.75802799,81355.0,81354.0,9e-07]
[1741880287689,0.62906799,81355.0,81354.0,9e-07]
[1741880288299,0.92906799,81355.0,81354.0,9e-07]
[1741880288501,0.558187,81336.0,81335.0,0.000169]
[1741880288703,0.67788799,81336.0,81335.0,0.000169]
[1741880288934,0.67788799,81336.0,81316.0,0.000169]
[1741880288935,0.558248,81317.0,81316.0,0.000169]
[1741880289143,0.67794899,81317.0,81316.0,0.000169]
[1741880289443,0.69050131,81317.0,81316.0,0.000169]
[1741880289579,0.558289,81304.0,81303.0,0.0001697]
[1741880289777,0.75628999,81304.0,81303.0,0.0001697]
[1741880290425,0.558298,81301.0,81300.0,7e-07]
[1741880290761,0.84915899,81301.0,81300.0,7e-07]
[1741880290938,0.86843122,81301.0,81300.0,7e-07]
[1741880291900,0.258358,81282.0,81276.0,0.0001695]
[1741880292150,0.558358,81282.0,81276.0,0.0001695]
[1741880292389,0.67805899,81282.0,81276.0,0.0001695]
[1741880292737,0.73696716,81282.0,81276.0,0.0001695]
[1741880292943,0.45127856,81282.0,81276.0,0.0001695]
[1741880293273,0.312302,81282.0,81276.0,0.0001695]
[1741880293681,0.558358,81282.0,81276.0,0.0001695]
[1741880293884,0.012302,81283.0,81276.0,0.0001695]
[1741880294102,0.258358,81282.0,81276.0,0.0001695]
[1741880295745,0.258357,81283.0,81277.0,0.246071]
[1741880295947,0.183381,81288.0,81279.0,0.258368]
[1741880296161,0.246044,81286.0,81279.0,0.012303]
[1741880296366,0.558346,81287.0,81281.0,0.0134717]
[1741880296490,0.246023,81294.0,81287.0,0.012302]
[1741880296691,0.012301,81294.0,81287.0,0.012302]
[1741880296950,0.0123,81298.0,81291.0,0.258329]
[1741880297151,0.24602,81295.0,81288.0,0.258339]
[1741880297351,0.25832,81295.0,81289.0,0.012301]
[1741880297529,0.25832,81295.0,81292.0,1.5]
[1741880297732,0.01927308,81297.0,81295.0,0.246014]
[1741880297910,0.01927308,81297.0,81296.0,0.0123]
[1741880298525,0.01927308,81297.0,81296.0,0.13200099]
[1741880298816,0.01927308,81297.0,81296.0,0.13323085]
[1741880298962,0.01927308,81297.0,81296.0,0.13200099]
[1741880301036,0.01927308,81297.0,81286.0,0.012302]
[1741880301167,0.01927308,81297.0,81296.0,0.0123]
[1741880301368,0.01927308,81297.0,81296.0,1.63200099]
[1741880301774,0.02027308,81297.0,81296.0,1.62270099]
[1741880302018,0.02027308,81297.0,81296.0,1.63500099]
[1741880302209,0.01927308,81297.0,81296.0,1.63200099]
[1741880302604,0.01927308,81297.0,81296.0,1.63500099]
[1741880302877,0.01927308,81297.0,81296.0,1.63200099]
[1741880303090,0.01927308,81297.0,81296.0,1.63500099]
[1741880303299,0.258266,81312.0,81306.0,0.012299]
[1741880303428,0.012298,81312.0,81307.0,0.24598]
[1741880303629,0.3,81322.0,81317.0,0.24595]
[1741880303832,0.012297,81319.0,81314.0,0.012298]
[1741880304053,0.245956,81316.0,81311.0,0.012298]
[1741880304579,0.01239592,81322.0,81321.0,0.012296]
[1741880304747,0.01239592,81322.0,81311.0,0.11970099]
[1741880304748,0.012296,81327.0,81314.0,0.011298]
[1741880304952,0.012296,81324.0,81314.0,0.011298]
[1741880305160,0.012296,81327.0,81310.0,0.258267]
[1741880305161,0.012297,81316.0,81310.0,0.258267]
[1741880305332,0.258253,81316.0,81311.0,0.001]
[1741880305540,0.258242,81319.0,81313.0,0.24596]
[1741880305743,0.245951,81317.0,81309.0,0.012298]
[1741880305924,0.012297,81317.0,81311.0,0.245967]
[1741880306133,0.03156312,81316.0,81308.0,0.258274]
[1741880306334,0.01926612,81316.0,81311.0,0.012298]
[1741880306529,0.01926612,81316.0,81313.0,0.25826]
[1741880306733,0.01926612,81316.0,81315.0,0.012297]
[1741880306974,0.01926612,81316.0,81315.0,0.13199799]
[1741880307175,0.01926612,81316.0,81315.0,0.11970099]
[1741880307873,0.01926612,81316.0,81315.0,0.37795499]
[1741880308137,0.01926612,81316.0,81315.0,0.36565799]
[1741880308336,0.01926612,81316.0,81315.0,0.11970099]
[1741880308960,0.01926612,81316.0,81315.0,0.003]
[1741880309195,0.03156312,81316.0,81315.0,0.003]
[1741880309411,0.27751712,81316.0,81315.0,0.003]
[1741880310259,0.57751712,81316.0,81315.0,0.003]
[1741880311309,0.57751712,81316.0,81315.0,1e-06]
[1741880311310,0.74581811,81316.0,81315.0,1e-06]
[1741880311515,0.258358,81282.0,81281.0,0.0011697]
[1741880311889,0.012302,81285.0,81281.0,0.0011697]
[1741880311890,0.246054,81283.0,81281.0,0.0011697]
[1741880312172,0.012302,81282.0,81281.0,0.0011697]
[1741880312385,0.011302,81282.0,81281.0,0.0011697]
[1741880312807,0.011302,81282.0,81281.0,0.0041697]
[1741880313034,0.43100299,81282.0,81281.0,0.0011697]
[1741880313915,0.66406935,81282.0,81281.0,0.0011697]
[1741880314354,0.67315132,81282.0,81281.0,0.0011697]
[1741880314758,0.69808969,81282.0,81281.0,7e-07]
[1741880314959,0.558375,81277.0,81276.0,4.9e-07]
[1741880315134,0.67807599,81277.0,81276.0,4.9e-07]
[1741880315751,0.71770859,81277.0,81276.0,4.9e-07]
[1741880316118,0.73698664,81277.0,81276.0,4.9e-07]
[1741880316320,0.69735404,81277.0,81276.0,4.9e-07]
[1741880316851,0.56535005,81277.0,81276.0,4.9e-07]
[1741880317041,0.57765305,81277.0,81276.0,4.9e-07]
[1741880317220,0.81731493,81277.0,81276.0,4.9e-07]
[1741880317473,0.312304,81272.0,81271.0,0.00075951]
[1741880317671,0.43200499,81272.0,81271.0,0.00075951]
[1741880318668,0.13200499,81272.0,81271.0,0.00075951]
[1741880318877,0.13322105,81272.0,81271.0,0.00075951]
[1741880319430,0.13422105,81272.0,81271.0,0.00075951]
[1741880319642,0.13322105,81272.0,81271.0,0.00075951]
[1741880319848,0.012304,81272.0,81271.0,0.00075951]
[1741880320086,0.001,81272.0,81271.0,0.00075951]
[1741880320206,0.246075,81276.0,81271.0,0.01306351]
[1741880320450,0.31927805,81277.0,81272.0,0.258391]
[1741880320674,0.31927805,81277.0,81275.0,0.012303]
[1741880320897,0.01927805,81277.0,81275.0,0.012303]
[1741880321108,0.01927805,81277.0,81276.0,0.257378]
[1741880322162,0.012302,81287.0,81271.0,0.00075951]
[1741880322163,0.0123,81296.0,81288.0,0.012301]
[1741880322366,0.012302,81285.0,81277.0,0.246072]
[1741880322571,0.00546372,81295.0,81290.0,0.012301]
[1741880322774,0.00546372,81295.0,81294.0,0.258321]
[1741880322973,0.30150855,81320.0,81294.0,0.258321]